Cogmind - Beta 15 @@@ ROGUE MODE // 2025.06.05 @ 14:13:36 Player: cingulata Result: Self-destructed Performance ------------- Evolutions (0) 0 Regions Visited (4) 800 Robots Destroyed (25) 125 Value Destroyed (495) 495 Prototype IDs (0) 0 Alien Tech Used (0) 0 Bonus (21) 21 TOTAL SCORE: 1441 Bonus ------- Follower Combat Kills 21 Cogmind --------- Core Integrity 84/250 Matter 273/300 Energy 100/100 System Corruption 1% Temperature Cool (50) Movement Treading (240) Ox1 Location -9/Mines Parts ------- > --- POWER (1) -------- (None) > --- PROPULSION (2) --- Light Treads Light Treads > --- UTILITY (2) ------ Large Storage Unit Large Storage Unit > --- WEAPON (2) ------- Beam Rifle Assault Rifle > --- INVENTORY (15) --- Ion Engine Light Angular Momentum Engine Wheel Experimental Sensor Array Seismic Detector Targeting Computer Propulsion Shielding Light Armor Plating Light Armor Plating EM Pulse Gun Medium Laser Beamcaster Heavy Assault Rifle Peak State ------------ > --- POWER ------------ Ion Engine > --- PROPULSION ------- Light Treads Light Treads > --- UTILITY ---------- Large Storage Unit Seismic Detector > --- WEAPON ----------- Beam Rifle Assault Rifle > --- INVENTORY -------- Ion Engine Light Angular Momentum Engine Wheel Large Storage Unit Experimental Sensor Array Targeting Computer Propulsion Shielding Light Armor Plating Light Armor Plating EM Pulse Gun Medium Laser Beamcaster Heavy Assault Rifle [Rating: 11] Favorites ----------- Power Ion Engine Engine Ion Engine Propulsion Light Treads Treads Light Treads Utility Large Storage Unit Device Seismic Detector Storage Large Storage Unit Processor Signal Interpreter Protection Light Armor Plating Weapon Assault Rifle Energy Gun EM Pulse Gun Ballistic Gun Assault Rifle Build | -11 -10 -10 -10 -9 ------- Run | Yrd Mat Min Exi Min Slots Evolved . | . . . . . Power . | . . . . . Propulsion . | . . . . . Utility . | . . . . . Weapon . | . . . . . Parts Attached 21 | 7 10 3 . 1 Power 2 | 1 1 . . . Engine 2 | 1 1 . . . Core . | . . . . . Reactor . | . . . . . Propulsion 4 | 2 1 1 . . Treads 4 | 2 1 1 . . Leg . | . . . . . Wheel . | . . . . . Hover . | . . . . . Flight . | . . . . . Utility 7 | 2 5 . . . Device 2 | 1 1 . . . Storage 3 | 1 2 . . . Processor 1 | . 1 . . . Hackware . | . . . . . Protection 1 | . 1 . . . Artifact . | . . . . . Weapon 8 | 2 3 2 . 1 Energy Gun 5 | . 2 2 . 1 Energy Cannon . | . . . . . Ballistic Gun 3 | 2 1 . . . Ballistic Cannon . | . . . . . Launcher . | . . . . . Special Weapon . | . . . . . Impact Weapon . | . . . . . Slashing Weapon . | . . . . . Piercing Weapon . | . . . . . Special Melee Weapon . | . . . . . Unidentified Prototypes . | . . . . . Parts Lost 3 | . . 2 . 1 Power 1 | . . . . 1 Propulsion 1 | . . 1 . . Utility . | . . . . . Weapon 1 | . . 1 . . Highest Loss Streak 2 | . . 2 . 1 To Critical Strikes . | . . . . . Average Backups 12 | 2 11 14 14 13 Power 2 | . 1 2 2 2 Propulsion 1 | . 1 2 1 1 Utility 4 | . 4 6 6 6 Weapon 3 | . 3 3 5 4 Tool/Special . | . . . . . Unused Backups 12 | . . 1 1 10 Power 3 | . . . 1 2 Propulsion 2 | . . 1 . 1 Utility 5 | . . . . 5 Weapon 2 | . . . . 2 Tool/Special . | . . . . . Average Slot Usage (%) 93 | . 100 99 71 98 Engine 14 | . 14 14 14 14 Treads 27 | . 28 27 28 28 Device 10 | . 6 12 14 11 Storage 17 | . 19 15 14 16 Energy Gun 8 | . 8 14 . 14 Ballistic Gun 13 | . 19 14 . 12 Peak Build Rating 11 | 7 8 10 10 11 Average Rating 8 | 5 7 9 8 10 On Entrance 6 | . 7 8 10 8 Naked Turns . | . . . . . Heaviest Build 49 | 12 49 49 26 31 Greatest Support 40 | 40 40 40 40 40 Greatest Overweight (x) 2 | . 1 2 . . Average Overweight (x) . | . . . . . Largest Inventory Capacity 15 | 8 15 15 15 15 Average Capacity 14 | 7 14 15 15 15 Most Carried 15 | 3 15 15 15 14 Average Carried 12 | 2 11 14 14 13 Final Capacity 15 | 8 15 15 15 15 Final Carried 15 | 3 15 15 15 13 Class Distribution -------------------- 64% | Mutant 35% | Scavenger-Mutant Dominant Class ---------------- Mutant | -10/Materials Mutant | -10/Mines Scavenger-Mutant | -10/Exiles Scavenger-Mutant | -9/Mines Resources | -11 -10 -10 -10 -9 ----------- Run | Yrd Mat Min Exi Min Matter Collected 766 | 190 480 86 . 10 Remotely . | . . . . . Salvage Created 753 | 42 577 113 . 21 Parts 44 | 5 35 4 . . Haulers Intercepted 2 | . 2 . . . Recyclers Shooed 1 | . . 1 . . Parts Field Recycled . | . . . . . Retrieved Matter . | . . . . . Parts Self-Destructed . | . . . . . Prevented . | . . . . . Kills | -11 -10 -10 -10 -9 ------- Run | Yrd Mat Min Exi Min Combat Hostiles Destroyed 21 | . 17 2 . 2 Guns 20 | . 16 2 . 2 AOE 1 | . 1 . . . Classes Destroyed 7 | 1 4 1 . 1 Builder 1 | . 1 . . . Tunneler 3 | 2 1 . . . Hauler 2 | . 2 . . . Swarmer 9 | . 9 . . . Grunt 8 | . 8 . . . Sentry 2 | . . 2 . . Assembled 2 | . . . . 2 Best Kill Streak 4 | 2 4 2 . 2 Combat Bots Only 4 | . 4 2 . 2 Max Kills in Single Turn 1 | 1 1 1 . 1 Gunslinging . | . . . . . Exploded 1 | . 1 . . . Melee . | . . . . . Uniques/NPCs Destroyed . | . . . . . Combat | -11 -10 -10 -10 -9 -------- Run | Yrd Mat Min Exi Min Hostile Shots Fired 99 | . 60 28 . 11 Missed 26 | . 20 5 . 1 Hits 73 | . 40 23 . 10 Projectile 73 | . 40 23 . 10 Critical Strikes 2 | . . 2 . . Damage Taken 890 | . 449 309 . 132 Core 166 | . 81 71 . 14 Absorbed by Shields . | . . . . . Core Remaining (%) 100 | 100 . . . . Volleys Fired 83 | 9 58 12 . 4 Largest 2 | 2 2 2 . 2 Hottest 80 | 40 80 70 . 76 Shots Fired 164 | 18 114 24 . 8 Gun 164 | 18 114 24 . 8 Cannon . | . . . . . Launcher . | . . . . . Special . | . . . . . Kinetic 122 | 18 88 12 . 4 Thermal 7 | . . 3 . 4 Explosive . | . . . . . Electromagnetic 35 | . 26 9 . . Robot Hit Streak 9 | 6 9 3 . 4 Robot Miss Streak 6 | 1 6 2 . 1 Penetration Max . | . . . . . Secondary Targets 2 | . 1 . . 1 Max Gunslinging Chain 1 | . 1 . . 1 Shots Hit Robots 103 | 13 72 13 . 5 Core Hits 46 | 5 34 5 . 2 Critical Kills . | . . . . . Critical Parts Destroyed . | . . . . . Critical Strikes . | . . . . . Melee Attacks . | . . . . . Impact . | . . . . . Slashing . | . . . . . Piercing . | . . . . . Sneak Attacks . | . . . . . Combat Hostiles . | . . . . . Follow-up Attacks . | . . . . . Damage Inflicted 1336 | 158 949 158 . 71 Guns 1176 | 150 799 156 . 71 Cannons . | . . . . . Explosions 118 | . 118 . . . Melee . | . . . . . Ramming 42 | 8 32 2 . . Kinetic 817 | 150 541 99 . 27 Thermal 187 | . 118 25 . 44 Explosive . | . . . . . Electromagnetic 290 | . 258 32 . . Impact . | . . . . . Slashing . | . . . . . Piercing . | . . . . . Highest Corruption 1 | . 1 1 1 1 Average Corruption 1 | . 1 1 1 1 Corruption Purged . | . . . . . Corruption Blocked . | . . . . . Effects 12 | . . 5 5 2 Message Errors 7 | . . 4 2 1 Heat Flow Errors 2 | . . 1 1 . Energy Discharges 1 | . . . . 1 Data Loss (minor) 1 | . . . 1 . Data Loss (major) 1 | . . . 1 . Overload Shots . | . . . . . Overflow Damage . | . . . . . Projectiles . | . . . . . Explosions . | . . . . . Melee . | . . . . . Knockbacks 1 | 1 . . . . Impact 1 | 1 . . . . Kinetic . | . . . . . Secondary . | . . . . . Self-Inflicted Damage 74 | . 74 . . . Shots 2 | . 2 . . . Rammed 11 | 3 7 1 . . Targets Rammed 12 | 3 8 1 . . Kicked . | . . . . . Crushed 1 | . 1 . . . Highest Temperature 185 | . 185 177 179 50 Average Temperature 59 | . 66 45 95 31 Received Heat Transfer 237 | . 129 108 . . Siege Activations . | . . . . . Martial Activations . | . . . . . Shielding Activations . | . . . . . Robots Disrupted . | . . . . . Combat Hostiles . | . . . . . Robots Corrupted . | . . . . . Combat Hostiles . | . . . . . Parts Fried . | . . . . . Impact Corruptions . | . . . . . Robots Melted . | . . . . . Combat Hostiles . | . . . . . Parts Melted 2 | . 2 . . . Heat Transferred 435 | . 250 74 . 111 Parts Sabotaged . | . . . . . Parts Stolen . | . . . . . Parts Stripped . | . . . . . Power Chain Reactions 2 | . 2 . . . Alert | -11 -10 -10 -10 -9 ------- Run | Yrd Mat Min Exi Min Maximum Alert Level . | . . . . . Low Security (%) 100 | 100 100 100 . 100 Level 1 . | . . . . . Level 2 . | . . . . . Level 3 . | . . . . . Level 4 . | . . . . . Level 5 . | . . . . . High Security . | . . . . . Max Security . | . . . . . Peak Influence 178 | 10 178 68 . . Initial . | . . . . . Average 40 | . 66 6 . . Influence Increases 601 | 10 473 118 . . Destroy 0b10 Robot/C 440 | . 340 100 . . Destroy 0b10 Robot/NC 30 | 10 20 . . . Destroy Leader 84 | . 74 10 . . Allied During Kill 8 | . . 8 . . Successful Hack 17 | . 17 . . . Destroy Structure 7 | . 7 . . . Lose Combat Pursuer 15 | . 15 . . . Influence Decreases 601 | 10 473 118 . . Time Decay 470 | 10 352 108 . . Lost Part 10 | . . 10 . . Purge Threat 121 | . 121 . . . Squads Dispatched 4 | . 4 . . . Investigation 2 | . 2 . . . Extermination . | . . . . . Reinforcement 2 | . 2 . . . Assault . | . . . . . Garrison . | . . . . . Intercept . | . . . . . Searches Triggered . | . . . . . Construction Impeded . | . . . . . Haulers Reinforced . | . . . . . Active Scanning Responses . | . . . . . Cargo Convoy Interrupts . | . . . . . Stealth | -11 -10 -10 -10 -9 --------- Run | Yrd Mat Min Exi Min Distress Signals 1 | . . 1 . . Communications Jammed . | . . . . . Distress Signals . | . . . . . Times Spotted 41 | . 27 5 . 9 Peak Tracking Total 10 | . 4 3 . 10 Tactical Retreats 2 | . 1 . . 1 Traps | -11 -10 -10 -10 -9 ------- Run | Yrd Mat Min Exi Min Traps Triggered 2 | . 2 . . . Indirectly . | . . . . . Trap Hack Attempts . | . . . . . Triggered . | . . . . . Disarmed . | . . . . . Reprogrammed . | . . . . . Reused . | . . . . . Traps Extracted . | . . . . . Installed . | . . . . . Triggered . | . . . . . Machines | -11 -10 -10 -10 -9 ---------- Run | Yrd Mat Min Exi Min Machines Disabled . | . . . . . Max in Single Turn . | . . . . . Machines Repaired . | . . . . . Machines Dismantled . | . . . . . Machines Sabotaged . | . . . . . Overloaded Fab Kills . | . . . . . Hacking | -11 -10 -10 -10 -9 --------- Run | Yrd Mat Min Exi Min Machines Accessed 9 | . 7 . 2 . Terminals 6 | . 6 . . . Fabricators . | . . . . . Repair Stations . | . . . . . Recycling Units 1 | . 1 . . . Scanalyzers . | . . . . . Garrison Access . | . . . . . Total Hacks 18 | . 16 . 2 . Successful 10 | . 8 . 2 . Failed 8 | . 8 . . . Catastrophic 1 | . 1 . . . Database Lockouts . | . . . . . Manual 6 | . 6 . . . Terminals 14 | . 14 . . . Fabricators . | . . . . . Repair Stations . | . . . . . Recycling Units 2 | . 2 . . . Scanalyzers . | . . . . . Garrison Access . | . . . . . Terminal Hacks 5 | . 3 . 2 . Record 2 | . . . 2 . Unreport Threat 1 | . 1 . . . Locate Traps 2 | . 2 . . . Fabricator Hacks . | . . . . . Repair Station Hacks . | . . . . . Recycling Unit Hacks 2 | . 2 . . . Report Inventory 1 | . 1 . . . Retrieve Components 1 | . 1 . . . Scanalyzer . | . . . . . Garrison Access Hacks . | . . . . . Unauthorized Hacks 3 | . 3 . . . Terminals 3 | . 3 . . . Botnet 3 | . 3 . . . Fabricators . | . . . . . Repair Stations . | . . . . . Recycling Units . | . . . . . Scanalyzers . | . . . . . Garrison Access . | . . . . . Data Cores Recovered . | . . . . . Used . | . . . . . Hacking Detections 6 | . 6 . . . Full Trace Events 1 | . 1 . . . Feedback Events . | . . . . . Feedback Blocked . | . . . . . Robot Schematics Acquired . | . . . . . Robots Built . | . . . . . Authchips . | . . . . . Time . | . . . . . Total Robot Build Rating . | . . . . . Part Schematics Acquired . | . . . . . Parts Built . | . . . . . Authchips . | . . . . . Time . | . . . . . Total Part Build Rating . | . . . . . Parts Repaired . | . . . . . Time . | . . . . . Parts Recycled . | . . . . . Recycled Matter . | . . . . . Retrieved Matter . | . . . . . Retrieved Components 2 | . 2 . . . Parts Scanalyzed . | . . . . . Part Schematics Acquired . | . . . . . Parts Damaged . | . . . . . Bothacking | -11 -10 -10 -10 -9 ------------ Run | Yrd Mat Min Exi Min Used RIF Installer . | . . . . . Robots Hacked . | . . . . . Non-combat . | . . . . . Combat . | . . . . . Robot Hacks Applied . | . . . . . Relay Couplers Released . | . . . . . Fabnet Peak Effective % . | . . . . . Robots Rewired . | . . . . . Allies Hacked . | . . . . . Hacks Repelled . | . . . . . Allies | -11 -10 -10 -10 -9 -------- Run | Yrd Mat Min Exi Min Total Allies 5 | . . 5 . . Largest Group 3 | . . 3 2 2 Highest-Rated Group 41 | . . 41 24 24 Highest-Rated Ally 31 | . . 31 16 16 Total Orders . | . . . . . Ally Attacks 11 | . . 8 . 3 Total Damage 146 | . . 103 . 43 Kills 4 | . . 3 . 1 Allies Corrupted . | . . . . . Allies Melted . | . . . . . Intel | -11 -10 -10 -10 -9 ------- Run | Yrd Mat Min Exi Min Active Infowar (turns) 2301 | 28 731 828 638 76 Seismic 2301 | 28 731 828 638 76 Robot Analysis Total . | . . . . . Derelict Logs Recovered 3 | . . 2 . 1 Drone Launches . | . . . . . Drone Recoveries . | . . . . . Exploration | -11 -10 -10 -10 -9 ------------- Run | Yrd Mat Min Exi Min Turns Passed 3263 | 120 1509 905 638 91 Spaces Moved 1672 | 50 660 518 398 46 Core 2 | 2 . . . . Treads 1670 | 48 660 518 398 46 Legs . | . . . . . Wheels . | . . . . . Hover . | . . . . . Flight . | . . . . . Fastest Speed 50 | 50 160 160 160 160 Average Speed 170 | 155 183 163 160 160 Slowest Speed 320 | 160 240 320 160 160 Overloaded Moves . | . . . . . Propulsion Burnouts . | . . . . . Robots Hopped . | . . . . . Potential Cave-ins . | . . . . . Cave-ins Triggered . | . . . . . Exploration Rate (%) 57 | 4 98 94 71 18 Regions Visited 4 Branch Regions 3 Pre-discovered Areas 2 | . . 1 . 1 Known Exits Taken . | . . . . . Unknown Exits Taken 4 | 1 1 1 1 . Scrap Searched 1 | . . 1 . . Spaces Dug . | . . . . . Terrain Destroyed 6 | . 6 . . . Melee . | . . . . . Projectile . | . . . . . AOE 6 | . 6 . . . Terrain Rammed . | . . . . . Walls Destroyed . | . . . . . Machines Disabled . | . . . . . Actions | -11 -10 -10 -10 -9 --------- Run | Yrd Mat Min Exi Min Total 1913 | 71 835 552 401 54 Wait 77 | . 69 7 . 1 Move 1668 | 49 659 517 397 46 Hop . | . . . . . Pick Up 22 | 3 14 5 . . Fast Attach 8 | 7 . 1 . . Attach 3 | . . 1 . 2 Detach 2 | . . . 2 . Swap 27 | . 22 4 . 1 Drop 11 | . 5 4 2 . Fire 83 | 9 58 12 . 4 Melee . | . . . . . Ram . | . . . . . Kick . | . . . . . Crush 12 | 3 8 1 . . Escape Stasis . | . . . . . Rewire . | . . . . . Trap . | . . . . . Miscellaneous . | . . . . . Route ------- -11/Scrapyard -10/Materials (discovered 4 exits: [*Mat x3] / [*Min]) -10/Mines (discovered 4 exits: [*Mat x2] / *Exi / [*Sub]) -10/Exiles -9/Mines History --------- Turn | Location | Event 38 | -11/Scrapyard | Discovered new exit (range 15) 121 | -11/Scrapyard | Entered Materials 309 | -10/Materials | Build established: Mutant 511 | -10/Materials | Discovered new exit (range 4) 807 | -10/Materials | Discovered new exit (range 9) 1341 | -10/Materials | Discovered new exit (range 16) 1618 | -10/Materials | Discovered new exit (range 8) 1630 | -10/Materials | Entered Mines 1661 | -10/Mines | Discovered new exit (range 4) 1691 | -10/Mines | Met a Derelict bent on vengeance 1704 | -10/Mines | Found a damaged Exp. Sensor Array with a note attached 1708 | -10/Mines | Found Prototype Device 1730 | -10/Mines | Discovered new exit (range 4) 2015 | -10/Mines | Core integrity fell below 50% 2039 | -10/Mines | Joined a pair of Derelicts in attacking an 0b10 outpost 2093 | -10/Mines | Learned location of Zion (-6) 2394 | -10/Mines | Build established: Scavenger-Mutant 2463 | -10/Mines | Assisted by bots powering up and referring to "LRC-V3" 2483 | -10/Mines | Discovered new exit (range 8) 2526 | -10/Mines | Deemed a non-threat by the Exiles lab entrance 2527 | -10/Mines | Discovered new exit (range 5) 2535 | -10/Mines | Entered Exiles 2535 | -10/Exiles | Found Exiles lab abandoned 2535 | -10/Exiles | Accompanied by 2 allies 3155 | -10/Exiles | Discovered new exit (range 11) 3173 | -10/Exiles | Entered Mines 3173 | -9/Mines | Accompanied by 2 allies 3213 | -9/Mines | Assembled infested the area 3218 | -9/Mines | Assisted by a Guerilla fighting off Assembled 3264 | -9/Mines | Self-destructed Last Messages --------------- group of Assembled to figure out where they're coming from, and they're closing on this area, come on!" 03220_ System corrupted: Energy discharge (-82). 03225_ Acquired derelict log, extracted data. World map confirmed: -6/Zion. 03239_ as-61891 suffers critical hit (Destroy). 03239_ as-61891 destroyed. 03244_ Mercenary 1a destroyed. 03245_ as-41572 destroyed. 03249_ T-07 Excavator destroyed. 03249_ Trooper 1a destroyed. 03252_ as-83601 destroyed. 03255_ Destroyed Asb. Hover Unit. 03256_ HV Slug penetrates as-05969. 03258_ QH-ZP8(h) destroyed. 03258_ as-69717 destroyed. 03258_ Switching to secondary target: as-01071. 03259_ Acquired 10 matter. 03262_ Ion Engine destroyed. Map ----- +----------------------------------------------------+ | ????# ??????# ######?????? | | ??????????????# ####???????? | | ??????????????# #???????? | | ??????????????#### #???????? | | ?????????????????# #???????? | | ?????????????????# #???????? | | ?????????????????# #???????? | | ?????????????????# #???????? | | ?????????????????# ###?????? | | ??????????????# ## ##????? | | ??????????????# ##???? | | ??????????????##### ##??? | | ??????????????????## ##?? | | ??????????? ###????# ##? | | ?????????? ??## #? | | ?????????# ## #? | | ??????????# % ##? | | ???????????# """" #?? | | ???????????##? """" #?? | | ????????????# """" % ##? | | ?????????????# #? | | ?????????????#### ## #? | | ????????????????## #?### #? | | ?????????????????# ????#a #? | | ?????????????????# ??### #? | | ?????????????????#???#==!@#? | | ?????????????????????#=%=[#? | | ?????????????????????#a[###? | | ?????????????????????#%=#??? | | ?????????????????????#*=#??? | | ?????????????????????#% #??? | | ???????????????????? #??? | | ?????????????????? #?? | | ???????????????? % ##?? | | ???????????????#"% ####??? | | ??????????????# #??????? | | ??????????????# #???????? | | ??????????????# "#????????? | | ?????????????# #?????????? | | ?????????????# ???????????? | | ????????????? ????????????? | | ???????????? ?????????????? | | ????????????? ?????????????? | | ???????????????????????????? | | ???????????????????????????? | | ???????????????????????????? | | ???????????????????????????? | | ???????????????????????????? | | ???????????????????????????? | | ???????????????????????????? | +----------------------------------------------------+ Best States ------------- Heat Dissipation 25 Energy Generation 10 Energy Capacity 250 Matter Stores 300 Matter Capacity 300 Sight Range 16 Terrain Scan Density 10 Armor Coverage 150 Evasion (%) 40 Recoil Reduction 2 Item Schematics ----------------- None Robot Schematics ------------------ None Fabricated ------------ Nothing Repaired ---------- Nothing Alien Tech Used ----------------- None Achievements -------------- Quantum Hacking Challenges ------------ None Game ------ Seed QuantumCompanionPlating Manual? 0 Play Time 00:25:37 Cumulative 26.5 hours Start 2025.06.05 @ 13:49:19 End 2025.06.05 @ 14:13:36 Sessions 1 Manual Loads 0 Difficulty Rogue Special Mode None Game No. 18 Rogue 18 Adventurer 0 Explorer 0 Win Type - Total 0 Types 0/0/0/0/0/0/0/0/0/0 Lore% 13 Gallery% 18 Achievement% 19 Wizard Run 0 Options --------- Layout 1 ASCII 0 Keyboard 0 Movement Numpad Keybinds 0 Fullscreen 1 Font 32/SmallcapsGlow Map View 50x35 Zoom Use 0% Tactical HUD 1 Map Filters NONE Filters NONE Steam 1 RUN: 00765d2a-2111-47f4-992f-4a7dbb3554b8